[Event "Early Titled Tuesday Blitz | February 8 2022"]
[White "Kosakowski, Jakub"]
[Black "Potapova, Margarita"]
[WhiteFideId "1185080"]
[BlackFideId "14126869"]
[WhiteElo "2476"]
[BlackElo "2209"]
[Result "1-0"]
[Round "07"]
[TimeControl "180+1"]
[Date "2022.02.08"]
[WhiteClock "0:00:21"]
[BlackClock "0:00:27"]

1. d4 {[%clk 0:03:00]}  Nf6 {[%clk 0:02:59]} 2. c4 {[%clk 0:03:00]}  e6 {[%clk 0:03:00]} 3. g3 {[%clk 0:03:00]}  d5 {[%clk 0:02:59]} 4. Bg2 {[%clk 0:03:00]}  dxc4 {[%clk 0:02:59]} 5. Nf3 {[%clk 0:03:00]}  a6 {[%clk 0:02:59]} 6. O-O {[%clk 0:03:01]}  Nc6 {[%clk 0:02:59]} 7. Nbd2 {[%clk 0:03:01]}  Nxd4 {[%clk 0:02:51]} 8. Nxc4 {[%clk 0:03:01]}  Nxf3+ {[%clk 0:02:48]} 9. Bxf3 {[%clk 0:03:02]}  Qxd1 {[%clk 0:02:48]} 10. Rxd1 {[%clk 0:03:03]}  Nd5 {[%clk 0:02:48]} 11. e4 {[%clk 0:03:03]}  Nb4 {[%clk 0:02:40]} 12. Bf4 {[%clk 0:02:57]}  Be7 {[%clk 0:02:22]} 13. Bxc7 {[%clk 0:02:50]}  O-O {[%clk 0:02:20]} 14. a3 {[%clk 0:02:34]}  Nc6 {[%clk 0:02:17]} 15. e5 {[%clk 0:02:03]}  Bc5 {[%clk 0:02:07]} 16. b4 {[%clk 0:01:49]}  Ba7 {[%clk 0:02:06]} 17. Be4 {[%clk 0:01:04]}  f5 {[%clk 0:02:00]} 18. exf6 {[%clk 0:01:03]}  gxf6 {[%clk 0:02:01]} 19. Nb6 {[%clk 0:00:58]}  Bxb6 {[%clk 0:02:00]} 20. Bxb6 {[%clk 0:00:59]}  e5 {[%clk 0:01:57]} 21. Rd6 {[%clk 0:00:59]}  Bh3 {[%clk 0:01:53]} 22. Rad1 {[%clk 0:00:57]}  Rac8 {[%clk 0:01:50]} 23. f3 {[%clk 0:00:54]}  h5 {[%clk 0:01:30]} 24. Kf2 {[%clk 0:00:52]}  Kg7 {[%clk 0:01:28]} 25. Ke3 {[%clk 0:00:46]}  f5 {[%clk 0:01:14]} 26. Bb1 {[%clk 0:00:41]}  f4+ {[%clk 0:01:12]} 27. gxf4 {[%clk 0:00:40]}  exf4+ {[%clk 0:01:12]} 28. Kf2 {[%clk 0:00:40]}  Rfe8 {[%clk 0:00:32]} 29. Rg1+ {[%clk 0:00:37]}  Kf7 {[%clk 0:00:32]} 30. Bg6+ {[%clk 0:00:31]}  Ke7 {[%clk 0:00:32]} 31. Bc5 {[%clk 0:00:32]}  Ne5 {[%clk 0:00:27]} 32. Bxe8 {[%clk 0:00:21]} 1-0


[Site "https://www.chess.com"]

[Event "Early Titled Tuesday Blitz | February 8 2022"]
[White "Kovanova, Baira"]
[Black "Al Hosani, Omran"]
[WhiteFideId "4164083"]
[BlackFideId "9308733"]
[WhiteElo "2190"]
[BlackElo "2246"]
[Result "1-0"]
[Round "07"]
[TimeControl "180+1"]
[Date "2022.02.08"]
[WhiteClock "0:00:14"]
[BlackClock "0:00:05"]

1. e4 {[%clk 0:03:00]}  e5 {[%clk 0:02:56]} 2. Nf3 {[%clk 0:02:59]}  Nc6 {[%clk 0:02:51]} 3. Bb5 {[%clk 0:02:59]}  a6 {[%clk 0:02:37]} 4. Ba4 {[%clk 0:02:58]}  Nf6 {[%clk 0:02:34]} 5. O-O {[%clk 0:02:57]}  Nxe4 {[%clk 0:02:31]} 6. d4 {[%clk 0:02:41]}  b5 {[%clk 0:02:28]} 7. Bb3 {[%clk 0:02:40]}  d5 {[%clk 0:02:28]} 8. dxe5 {[%clk 0:02:40]}  Be6 {[%clk 0:02:29]} 9. Qe2 {[%clk 0:02:38]}  Be7 {[%clk 0:02:28]} 10. Be3 {[%clk 0:02:33]}  O-O {[%clk 0:02:26]} 11. Rd1 {[%clk 0:02:32]}  Na5 {[%clk 0:02:17]} 12. Nd4 {[%clk 0:02:02]}  c5 {[%clk 0:02:13]} 13. Nxe6 {[%clk 0:02:01]}  fxe6 {[%clk 0:02:13]} 14. c3 {[%clk 0:01:55]}  Bg5 {[%clk 0:01:35]} 15. f3 {[%clk 0:01:41]}  Bxe3+ {[%clk 0:01:30]} 16. Qxe3 {[%clk 0:01:41]}  Qg5 {[%clk 0:01:31]} 17. Qe2 {[%clk 0:01:22]}  c4 {[%clk 0:01:24]} 18. fxe4 {[%clk 0:01:18]}  cxb3 {[%clk 0:01:24]} 19. exd5 {[%clk 0:01:18]}  exd5 {[%clk 0:01:21]} 20. Nd2 {[%clk 0:01:16]}  Rae8 {[%clk 0:01:18]} 21. Nf3 {[%clk 0:01:16]}  Qg4 {[%clk 0:01:10]} 22. axb3 {[%clk 0:01:11]}  Nxb3 {[%clk 0:01:09]} 23. Rxa6 {[%clk 0:01:11]}  Nc5 {[%clk 0:01:09]} 24. Rd6 {[%clk 0:00:55]}  Ne4 {[%clk 0:01:08]} 25. R6xd5 {[%clk 0:00:55]}  Ng5 {[%clk 0:01:08]} 26. Rf1 {[%clk 0:00:52]}  Nh3+ {[%clk 0:00:56]} 27. Kh1 {[%clk 0:00:52]}  Nf4 {[%clk 0:00:57]} 28. Qd2 {[%clk 0:00:49]}  Nxd5 {[%clk 0:00:57]} 29. Qxd5+ {[%clk 0:00:49]}  Kh8 {[%clk 0:00:58]} 30. Qxb5 {[%clk 0:00:48]}  Re6 {[%clk 0:00:57]} 31. Qc5 {[%clk 0:00:43]}  Ree8 {[%clk 0:00:42]} 32. b4 {[%clk 0:00:39]}  Rc8 {[%clk 0:00:42]} 33. Qd4 {[%clk 0:00:37]}  Qg6 {[%clk 0:00:30]} 34. Re1 {[%clk 0:00:30]}  Rcd8 {[%clk 0:00:29]} 35. Qc5 {[%clk 0:00:25]}  Rfe8 {[%clk 0:00:20]} 36. Nd4 {[%clk 0:00:22]}  Rc8 {[%clk 0:00:18]} 37. Qd5 {[%clk 0:00:20]}  Rxc3 {[%clk 0:00:18]} 38. e6 {[%clk 0:00:20]}  Re3 {[%clk 0:00:19]} 39. Rf1 {[%clk 0:00:19]}  Qf6 {[%clk 0:00:17]} 40. Rg1 {[%clk 0:00:17]}  Rd3 {[%clk 0:00:17]} 41. Qb5 {[%clk 0:00:16]}  Rd8 {[%clk 0:00:10]} 42. Qxd3 {[%clk 0:00:16]}  Rxd4 {[%clk 0:00:08]} 43. e7 {[%clk 0:00:15]}  Qxe7 {[%clk 0:00:04]} 44. Qxd4 {[%clk 0:00:15]}  h6 {[%clk 0:00:04]} 45. b5 {[%clk 0:00:15]}  Qb7 {[%clk 0:00:04]} 46. b6 {[%clk 0:00:15]}  Qc6 {[%clk 0:00:05]} 47. h3 {[%clk 0:00:15]}  Qb7 {[%clk 0:00:04]} 48. Rc1 {[%clk 0:00:14]}  Kh7 {[%clk 0:00:04]} 49. Rc7 {[%clk 0:00:14]}  Qa6 {[%clk 0:00:05]} 50. Qxg7# {[%clk 0:00:14]} 1-0


[Site "https://www.chess.com"]

[Event "Early Titled Tuesday Blitz | February 8 2022"]
[White "Kushagra, Mohan"]
[Black "Agasarov, Benik"]
[WhiteFideId "25033638"]
[BlackFideId "13314823"]
[WhiteElo "1886"]
[BlackElo "2591"]
[Result "1-0"]
[Round "07"]
[TimeControl "180+1"]
[Date "2022.02.08"]
[WhiteClock "0:00:36"]
[BlackClock "0:00:11"]

1. e4 {[%clk 0:03:00]}  e5 {[%clk 0:02:59]} 2. Nf3 {[%clk 0:03:00]}  Nc6 {[%clk 0:02:59]} 3. Bb5 {[%clk 0:02:59]}  Bc5 {[%clk 0:02:59]} 4. O-O {[%clk 0:02:59]}  Nd4 {[%clk 0:02:59]} 5. Nxd4 {[%clk 0:02:58]}  Bxd4 {[%clk 0:02:59]} 6. d3 {[%clk 0:02:58]}  c6 {[%clk 0:02:56]} 7. Ba4 {[%clk 0:02:58]}  Nf6 {[%clk 0:02:54]} 8. Nd2 {[%clk 0:02:57]}  d6 {[%clk 0:02:53]} 9. h3 {[%clk 0:02:56]}  O-O {[%clk 0:02:53]} 10. Nf3 {[%clk 0:02:56]}  Bb6 {[%clk 0:02:52]} 11. c3 {[%clk 0:02:56]}  h6 {[%clk 0:02:51]} 12. Bc2 {[%clk 0:02:56]}  Nh5 {[%clk 0:02:49]} 13. Be3 {[%clk 0:02:51]}  Qf6 {[%clk 0:02:44]} 14. d4 {[%clk 0:02:11]}  Nf4 {[%clk 0:02:36]} 15. Bxf4 {[%clk 0:01:55]}  Qxf4 {[%clk 0:02:34]} 16. dxe5 {[%clk 0:01:55]}  dxe5 {[%clk 0:02:25]} 17. Qd2 {[%clk 0:01:54]}  Qf6 {[%clk 0:02:17]} 18. Qe2 {[%clk 0:01:50]}  Re8 {[%clk 0:02:10]} 19. Rad1 {[%clk 0:01:49]}  Qg6 {[%clk 0:02:00]} 20. Kh1 {[%clk 0:01:47]}  Qh5 {[%clk 0:01:36]} 21. Rd2 {[%clk 0:01:44]}  Bg4 {[%clk 0:01:24]} 22. Rd3 {[%clk 0:01:35]}  Rad8 {[%clk 0:01:19]} 23. Rfd1 {[%clk 0:01:34]}  Rxd3 {[%clk 0:01:17]} 24. Rxd3 {[%clk 0:01:34]}  Be6 {[%clk 0:01:12]} 25. Bb3 {[%clk 0:01:32]}  Bxb3 {[%clk 0:01:04]} 26. axb3 {[%clk 0:01:33]}  Qg6 {[%clk 0:00:58]} 27. Nh4 {[%clk 0:01:33]}  Qf6 {[%clk 0:00:56]} 28. Nf5 {[%clk 0:01:31]}  Bc5 {[%clk 0:00:39]} 29. Rd7 {[%clk 0:01:27]}  b5 {[%clk 0:00:29]} 30. Qf3 {[%clk 0:01:11]}  Qe6 {[%clk 0:00:25]} 31. Qg3 {[%clk 0:01:10]}  Bf8 {[%clk 0:00:20]} 32. Rxa7 {[%clk 0:01:09]}  g6 {[%clk 0:00:20]} 33. b4 {[%clk 0:01:00]}  Kh8 {[%clk 0:00:19]} 34. Ne3 {[%clk 0:00:57]}  Rd8 {[%clk 0:00:19]} 35. Qf3 {[%clk 0:00:57]}  Be7 {[%clk 0:00:19]} 36. Qg4 {[%clk 0:00:51]}  Qf6 {[%clk 0:00:18]} 37. Qg3 {[%clk 0:00:46]}  Kg8 {[%clk 0:00:18]} 38. Ng4 {[%clk 0:00:44]}  Qe6 {[%clk 0:00:14]} 39. Kh2 {[%clk 0:00:33]}  Bg5 {[%clk 0:00:13]} 40. Nxe5 {[%clk 0:00:30]}  Rf8 {[%clk 0:00:12]} 41. f4 {[%clk 0:00:29]}  Bf6 {[%clk 0:00:12]} 42. Nxg6 {[%clk 0:00:28]}  Bg7 {[%clk 0:00:06]} 43. Nxf8 {[%clk 0:00:27]}  Kxf8 {[%clk 0:00:06]} 44. Ra8+ {[%clk 0:00:28]}  Ke7 {[%clk 0:00:07]} 45. Qxg7 {[%clk 0:00:28]}  Qxe4 {[%clk 0:00:07]} 46. Qe5+ {[%clk 0:00:28]}  Qxe5 {[%clk 0:00:08]} 47. fxe5 {[%clk 0:00:29]}  Ke6 {[%clk 0:00:09]} 48. Rc8 {[%clk 0:00:29]}  Kd5 {[%clk 0:00:07]} 49. Rh8 {[%clk 0:00:29]}  Kxe5 {[%clk 0:00:08]} 50. Rxh6 {[%clk 0:00:29]}  Kd5 {[%clk 0:00:08]} 51. Rf6 {[%clk 0:00:29]}  c5 {[%clk 0:00:08]} 52. Rxf7 {[%clk 0:00:29]}  cxb4 {[%clk 0:00:09]} 53. cxb4 {[%clk 0:00:30]}  Kc4 {[%clk 0:00:10]} 54. h4 {[%clk 0:00:31]}  Kxb4 {[%clk 0:00:10]} 55. h5 {[%clk 0:00:32]}  Kb3 {[%clk 0:00:11]} 56. h6 {[%clk 0:00:33]}  Kxb2 {[%clk 0:00:12]} 57. h7 {[%clk 0:00:34]}  b4 {[%clk 0:00:13]} 58. h8=Q+ {[%clk 0:00:35]}  Ka2 {[%clk 0:00:13]} 59. Qf6 {[%clk 0:00:35]}  b3 {[%clk 0:00:14]} 60. Rb7 {[%clk 0:00:35]}  Ka3 {[%clk 0:00:12]} 61. Qc3 {[%clk 0:00:35]}  Ka2 {[%clk 0:00:11]} 62. Qxb3+ {[%clk 0:00:35]}  Ka1 {[%clk 0:00:11]} 63. Qb1# {[%clk 0:00:36]} 1-0


[Site "https://www.chess.com"]

[Event "Early Titled Tuesday Blitz | February 8 2022"]
[White "Kuzmin, Roman"]
[Black "Toncheva, Nadya"]
[WhiteFideId "44134932"]
[BlackFideId "2924056"]
[WhiteElo "1978"]
[BlackElo "1920"]
[Result "1-0"]
[Round "07"]
[TimeControl "180+1"]
[Date "2022.02.08"]
[WhiteClock "0:00:22"]
[BlackClock "0:00:15"]

1. e4 {[%clk 0:03:00]}  c5 {[%clk 0:02:58]} 2. Nf3 {[%clk 0:03:01]}  Nc6 {[%clk 0:02:58]} 3. d4 {[%clk 0:03:01]}  cxd4 {[%clk 0:02:59]} 4. Nxd4 {[%clk 0:03:02]}  e6 {[%clk 0:02:59]} 5. Nc3 {[%clk 0:03:01]}  Qc7 {[%clk 0:02:59]} 6. Be3 {[%clk 0:02:52]}  a6 {[%clk 0:02:58]} 7. f4 {[%clk 0:02:51]}  Be7 {[%clk 0:02:51]} 8. Qd2 {[%clk 0:02:51]}  d6 {[%clk 0:02:50]} 9. Be2 {[%clk 0:02:49]}  Nf6 {[%clk 0:02:50]} 10. Bf3 {[%clk 0:02:47]}  O-O {[%clk 0:02:48]} 11. g4 {[%clk 0:02:42]}  Nxd4 {[%clk 0:02:40]} 12. Bxd4 {[%clk 0:02:33]}  e5 {[%clk 0:02:38]} 13. Be3 {[%clk 0:02:33]}  exf4 {[%clk 0:02:35]} 14. Bxf4 {[%clk 0:02:34]}  Bxg4 {[%clk 0:02:27]} 15. Bxg4 {[%clk 0:02:28]}  Nxg4 {[%clk 0:02:27]} 16. O-O-O {[%clk 0:02:25]}  Ne5 {[%clk 0:02:22]} 17. Nd5 {[%clk 0:02:23]}  Qd8 {[%clk 0:02:19]} 18. Qg2 {[%clk 0:02:21]}  Bf6 {[%clk 0:02:09]} 19. Rhg1 {[%clk 0:02:15]}  Ng6 {[%clk 0:01:58]} 20. h4 {[%clk 0:02:06]}  Bxh4 {[%clk 0:01:50]} 21. Qg4 {[%clk 0:01:46]}  Re8 {[%clk 0:01:39]} 22. Be3 {[%clk 0:01:06]}  Qc8 {[%clk 0:01:14]} 23. Qf3 {[%clk 0:00:40]}  Qc6 {[%clk 0:00:49]} 24. Rdf1 {[%clk 0:00:30]}  Kh8 {[%clk 0:00:23]} 25. Bd4 {[%clk 0:00:26]}  f6 {[%clk 0:00:16]} 26. Rxg6 {[%clk 0:00:22]}  hxg6 {[%clk 0:00:15]} 27. Rh1 {[%clk 0:00:22]}  g5 {[%clk 0:00:15]} 28. Nxf6 {[%clk 0:00:22]}  Rf8 {[%clk 0:00:15]} 29. Qh5# {[%clk 0:00:22]} 1-0


[Site "https://www.chess.com"]

[Event "Early Titled Tuesday Blitz | February 8 2022"]
[White "Lakshmi C"]
[Black "Manukian, Artak"]
[WhiteFideId "25035347"]
[BlackFideId "13301373"]
[WhiteElo "1775"]
[BlackElo "2416"]
[Result "1-0"]
[Round "07"]
[TimeControl "180+1"]
[Date "2022.02.08"]
[WhiteClock "0:00:17"]
[BlackClock "0:00:38"]

1. e4 {[%clk 0:02:59]}  c6 {[%clk 0:02:59]} 2. Nc3 {[%clk 0:02:58]}  d5 {[%clk 0:02:59]} 3. Nf3 {[%clk 0:02:58]}  dxe4 {[%clk 0:02:59]} 4. Nxe4 {[%clk 0:02:57]}  Nf6 {[%clk 0:03:00]} 5. Ng3 {[%clk 0:02:56]}  Bg4 {[%clk 0:02:59]} 6. h3 {[%clk 0:02:48]}  Bxf3 {[%clk 0:02:59]} 7. Qxf3 {[%clk 0:02:49]}  e5 {[%clk 0:03:00]} 8. Bc4 {[%clk 0:02:46]}  Nbd7 {[%clk 0:02:59]} 9. O-O {[%clk 0:02:42]}  Be7 {[%clk 0:02:59]} 10. Nf5 {[%clk 0:02:41]}  O-O {[%clk 0:02:59]} 11. Bb3 {[%clk 0:02:11]}  Re8 {[%clk 0:02:47]} 12. Qg3 {[%clk 0:02:07]}  Nh5 {[%clk 0:02:39]} 13. Nh6+ {[%clk 0:02:07]}  Kf8 {[%clk 0:02:37]} 14. Qf3 {[%clk 0:02:08]}  Nhf6 {[%clk 0:02:25]} 15. Nxf7 {[%clk 0:02:07]}  Qb6 {[%clk 0:02:24]} 16. Ng5 {[%clk 0:02:05]}  Bc5 {[%clk 0:02:06]} 17. Qf5 {[%clk 0:01:14]}  Ke7 {[%clk 0:01:59]} 18. Nf7 {[%clk 0:01:13]}  Nd5 {[%clk 0:01:39]} 19. Nxe5 {[%clk 0:01:02]}  Nxe5 {[%clk 0:01:39]} 20. Qxe5+ {[%clk 0:01:01]}  Kd8 {[%clk 0:01:34]} 21. Qg5+ {[%clk 0:01:00]}  Kc8 {[%clk 0:01:31]} 22. c3 {[%clk 0:00:57]}  Bxf2+ {[%clk 0:01:25]} 23. Kh1 {[%clk 0:00:53]}  Bc5 {[%clk 0:00:59]} 24. d4 {[%clk 0:00:45]}  Be7 {[%clk 0:00:59]} 25. Qg4+ {[%clk 0:00:43]}  Kd8 {[%clk 0:00:58]} 26. Bg5 {[%clk 0:00:34]}  Qc7 {[%clk 0:00:56]} 27. Bxd5 {[%clk 0:00:30]}  cxd5 {[%clk 0:00:56]} 28. Rf5 {[%clk 0:00:27]}  Qd7 {[%clk 0:00:53]} 29. Qf3 {[%clk 0:00:20]}  Bxg5 {[%clk 0:00:49]} 30. Rxg5 {[%clk 0:00:20]}  Kc7 {[%clk 0:00:48]} 31. Rxd5 {[%clk 0:00:20]}  Qe6 {[%clk 0:00:43]} 32. Qg3+ {[%clk 0:00:18]}  Kc6 {[%clk 0:00:37]} 33. Rc5+ {[%clk 0:00:18]}  Kb6 {[%clk 0:00:38]} 34. Qc7+ {[%clk 0:00:17]}  Ka6 {[%clk 0:00:38]} 35. Ra5# {[%clk 0:00:17]} 1-0


[Site "https://www.chess.com"]

[Event "Early Titled Tuesday Blitz | February 8 2022"]
[White "Lauridsen, Jesper Morch"]
[Black "Murthy, Pappu"]
[WhiteFideId "1401890"]
[BlackFideId "2013401"]
[WhiteElo "2223"]
[BlackElo "1966"]
[Result "1-0"]
[Round "07"]
[TimeControl "180+1"]
[Date "2022.02.08"]
[WhiteClock "0:01:08"]
[BlackClock "0:00:11"]

1. e4 {[%clk 0:03:00]}  c5 {[%clk 0:02:59]} 2. Nf3 {[%clk 0:02:59]}  d6 {[%clk 0:02:59]} 3. d4 {[%clk 0:02:59]}  cxd4 {[%clk 0:02:59]} 4. Nxd4 {[%clk 0:02:59]}  Nf6 {[%clk 0:02:59]} 5. Nc3 {[%clk 0:03:00]}  g6 {[%clk 0:03:00]} 6. f3 {[%clk 0:02:59]}  Bg7 {[%clk 0:03:00]} 7. Be3 {[%clk 0:03:00]}  O-O {[%clk 0:03:01]} 8. Qd2 {[%clk 0:03:00]}  Nc6 {[%clk 0:03:01]} 9. Bc4 {[%clk 0:02:59]}  Nxd4 {[%clk 0:02:59]} 10. Bxd4 {[%clk 0:02:58]}  Be6 {[%clk 0:02:59]} 11. Bb3 {[%clk 0:02:57]}  Qa5 {[%clk 0:02:59]} 12. O-O {[%clk 0:02:52]}  Rac8 {[%clk 0:02:56]} 13. Rad1 {[%clk 0:02:50]}  b5 {[%clk 0:02:52]} 14. Nd5 {[%clk 0:02:47]}  Qd8 {[%clk 0:02:42]} 15. Nxf6+ {[%clk 0:02:44]}  exf6 {[%clk 0:02:35]} 16. Bxa7 {[%clk 0:02:38]}  Bxb3 {[%clk 0:02:20]} 17. cxb3 {[%clk 0:02:21]}  Ra8 {[%clk 0:02:04]} 18. Bd4 {[%clk 0:02:13]}  Rxa2 {[%clk 0:02:02]} 19. Bc3 {[%clk 0:02:09]}  Qb6+ {[%clk 0:01:58]} 20. Kh1 {[%clk 0:02:07]}  Rd8 {[%clk 0:01:45]} 21. b4 {[%clk 0:02:07]}  h5 {[%clk 0:01:23]} 22. Ra1 {[%clk 0:02:04]}  Rda8 {[%clk 0:01:21]} 23. Rxa2 {[%clk 0:02:03]}  Rxa2 {[%clk 0:01:21]} 24. Rd1 {[%clk 0:02:01]}  Kh7 {[%clk 0:01:11]} 25. h3 {[%clk 0:01:59]}  h4 {[%clk 0:00:59]} 26. Qxd6 {[%clk 0:01:43]}  Qxd6 {[%clk 0:00:48]} 27. Rxd6 {[%clk 0:01:41]}  Ra1+ {[%clk 0:00:49]} 28. Kh2 {[%clk 0:01:41]}  Bh6 {[%clk 0:00:49]} 29. Rxf6 {[%clk 0:01:35]}  Be3 {[%clk 0:00:41]} 30. Rxf7+ {[%clk 0:01:31]}  Kh6 {[%clk 0:00:39]} 31. Bg7+ {[%clk 0:01:25]}  Kh5 {[%clk 0:00:38]} 32. g4+ {[%clk 0:01:22]}  hxg3+ {[%clk 0:00:26]} 33. Kxg3 {[%clk 0:01:22]}  Rg1+ {[%clk 0:00:15]} 34. Kh2 {[%clk 0:01:21]}  Rf1 {[%clk 0:00:12]} 35. Bf6 {[%clk 0:01:14]}  Rf2+ {[%clk 0:00:10]} 36. Kg3 {[%clk 0:01:12]}  Rf1 {[%clk 0:00:10]} 37. Rh7+ {[%clk 0:01:11]}  Bh6 {[%clk 0:00:10]} 38. Bg7 {[%clk 0:01:09]}  Rg1+ {[%clk 0:00:11]} 39. Kf2 {[%clk 0:01:08]} 1-0


[Site "https://www.chess.com"]

[Event "Early Titled Tuesday Blitz | February 8 2022"]
[White "Lazavik, Denis"]
[Black "Wagner, Dennis"]
[WhiteFideId "13515110"]
[BlackFideId "24650684"]
[WhiteElo "2436"]
[BlackElo "2355"]
[Result "1/2-1/2"]
[Round "07"]
[TimeControl "180+1"]
[Date "2022.02.08"]
[WhiteClock "0:00:05"]
[BlackClock "0:00:06"]

1. d4 {[%clk 0:03:00]}  Nf6 {[%clk 0:02:59]} 2. c4 {[%clk 0:03:01]}  e6 {[%clk 0:02:59]} 3. Nf3 {[%clk 0:03:02]}  d5 {[%clk 0:02:59]} 4. Nc3 {[%clk 0:03:02]}  Be7 {[%clk 0:02:57]} 5. Bg5 {[%clk 0:03:02]}  h6 {[%clk 0:02:57]} 6. Bxf6 {[%clk 0:03:01]}  Bxf6 {[%clk 0:02:58]} 7. e3 {[%clk 0:03:02]}  O-O {[%clk 0:02:58]} 8. Rc1 {[%clk 0:03:02]}  dxc4 {[%clk 0:02:51]} 9. Bxc4 {[%clk 0:03:01]}  Nd7 {[%clk 0:02:51]} 10. O-O {[%clk 0:02:51]}  c5 {[%clk 0:02:44]} 11. Ne4 {[%clk 0:02:48]}  cxd4 {[%clk 0:02:38]} 12. Nxd4 {[%clk 0:02:48]}  Nb6 {[%clk 0:02:35]} 13. Nxf6+ {[%clk 0:02:36]}  Qxf6 {[%clk 0:02:36]} 14. Be2 {[%clk 0:02:37]}  e5 {[%clk 0:02:32]} 15. Nb5 {[%clk 0:02:27]}  Rd8 {[%clk 0:02:31]} 16. Qb3 {[%clk 0:02:12]}  Be6 {[%clk 0:02:27]} 17. Qb4 {[%clk 0:01:55]}  Nd5 {[%clk 0:02:21]} 18. Qa5 {[%clk 0:01:26]}  Qg6 {[%clk 0:02:00]} 19. Rfd1 {[%clk 0:01:05]}  a6 {[%clk 0:01:33]} 20. Nc3 {[%clk 0:00:52]}  b6 {[%clk 0:01:31]} 21. Qa3 {[%clk 0:00:42]}  Nxc3 {[%clk 0:01:27]} 22. Qxc3 {[%clk 0:00:43]}  Bd5 {[%clk 0:01:09]} 23. Bf1 {[%clk 0:00:42]}  Qe6 {[%clk 0:01:02]} 24. a3 {[%clk 0:00:40]}  Rac8 {[%clk 0:00:51]} 25. Qd2 {[%clk 0:00:30]}  Rxc1 {[%clk 0:00:35]} 26. Rxc1 {[%clk 0:00:31]}  Rd7 {[%clk 0:00:34]} 27. Rc8+ {[%clk 0:00:26]}  Kh7 {[%clk 0:00:34]} 28. Qc2+ {[%clk 0:00:27]}  f5 {[%clk 0:00:25]} 29. Bxa6 {[%clk 0:00:20]}  Bb3 {[%clk 0:00:21]} 30. Qc3 {[%clk 0:00:11]}  Rd1+ {[%clk 0:00:21]} 31. Bf1 {[%clk 0:00:12]}  Qd5 {[%clk 0:00:19]} 32. h3 {[%clk 0:00:07]}  b5 {[%clk 0:00:15]} 33. e4 {[%clk 0:00:04]}  fxe4 {[%clk 0:00:09]} 34. Rc5 {[%clk 0:00:04]}  Rxf1+ {[%clk 0:00:08]} 35. Kxf1 {[%clk 0:00:03]}  Bc4+ {[%clk 0:00:06]} 36. Rxc4 {[%clk 0:00:03]}  bxc4 {[%clk 0:00:06]} 37. Kg1 {[%clk 0:00:03]}  Qd3 {[%clk 0:00:05]} 38. a4 {[%clk 0:00:03]}  Qd1+ {[%clk 0:00:04]} 39. Kh2 {[%clk 0:00:04]}  Qxa4 {[%clk 0:00:05]} 40. Qxe5 {[%clk 0:00:04]}  Qc2 {[%clk 0:00:05]} 41. Qd4 {[%clk 0:00:04]}  Kh8 {[%clk 0:00:04]} 42. h4 {[%clk 0:00:05]}  Qd3 {[%clk 0:00:04]} 43. Qe5 {[%clk 0:00:04]}  Kh7 {[%clk 0:00:05]} 44. Qf5+ {[%clk 0:00:04]}  Kh8 {[%clk 0:00:05]} 45. Qc8+ {[%clk 0:00:04]}  Kh7 {[%clk 0:00:05]} 46. Qf5+ {[%clk 0:00:05]}  Kh8 {[%clk 0:00:05]} 47. Qc8+ {[%clk 0:00:05]}  Kh7 {[%clk 0:00:06]} 48. Qf5+ {[%clk 0:00:05]} 1/2-1/2


[Site "https://www.chess.com"]

[Event "Early Titled Tuesday Blitz | February 8 2022"]
[White "Le Ruyet, Leopold"]
[Black "Derraugh, Geordie"]
[WhiteFideId "645923"]
[BlackFideId "2603950"]
[WhiteElo "2276"]
[BlackElo "2116"]
[Result "1-0"]
[Round "07"]
[TimeControl "180+1"]
[Date "2022.02.08"]
[WhiteClock "0:01:39"]
[BlackClock "0:00:01"]

1. d4 {[%clk 0:03:00]}  Nf6 {[%clk 0:02:59]} 2. c4 {[%clk 0:03:00]}  e5 {[%clk 0:02:58]} 3. dxe5 {[%clk 0:02:55]}  Ng4 {[%clk 0:02:58]} 4. Nf3 {[%clk 0:02:53]}  Bc5 {[%clk 0:02:57]} 5. e3 {[%clk 0:02:53]}  Nc6 {[%clk 0:02:57]} 6. Nc3 {[%clk 0:02:51]}  Ngxe5 {[%clk 0:02:57]} 7. Be2 {[%clk 0:02:46]}  O-O {[%clk 0:02:57]} 8. O-O {[%clk 0:02:46]}  Nxf3+ {[%clk 0:02:52]} 9. Bxf3 {[%clk 0:02:46]}  Ne5 {[%clk 0:02:52]} 10. Be2 {[%clk 0:02:45]}  d6 {[%clk 0:02:52]} 11. f4 {[%clk 0:02:37]}  Nc6 {[%clk 0:02:29]} 12. Kh1 {[%clk 0:02:35]}  Re8 {[%clk 0:02:27]} 13. e4 {[%clk 0:02:32]}  Nd4 {[%clk 0:02:27]} 14. Bd3 {[%clk 0:02:27]}  Qh4 {[%clk 0:02:17]} 15. f5 {[%clk 0:02:27]}  c6 {[%clk 0:01:56]} 16. Bf4 {[%clk 0:02:23]}  g6 {[%clk 0:01:47]} 17. Qd2 {[%clk 0:02:14]}  f6 {[%clk 0:01:21]} 18. Na4 {[%clk 0:02:01]}  g5 {[%clk 0:01:09]} 19. Bg3 {[%clk 0:01:58]}  Qh5 {[%clk 0:01:09]} 20. b4 {[%clk 0:01:57]}  Bb6 {[%clk 0:00:41]} 21. c5 {[%clk 0:01:56]}  dxc5 {[%clk 0:00:18]} 22. bxc5 {[%clk 0:01:57]}  Kg7 {[%clk 0:00:05]} 23. cxb6 {[%clk 0:01:53]}  axb6 {[%clk 0:00:06]} 24. Nxb6 {[%clk 0:01:52]}  Ra3 {[%clk 0:00:07]} 25. Nc4 {[%clk 0:01:50]}  Ra4 {[%clk 0:00:03]} 26. e5 {[%clk 0:01:45]}  Rd8 {[%clk 0:00:02]} 27. exf6+ {[%clk 0:01:44]}  Kxf6 {[%clk 0:00:01]} 28. Be5+ {[%clk 0:01:44]}  Kf7 {[%clk 0:00:02]} 29. Nd6+ {[%clk 0:01:42]}  Kg8 {[%clk 0:00:01]} 30. f6 {[%clk 0:01:39]} 1-0


[Site "https://www.chess.com"]

[Event "Early Titled Tuesday Blitz | February 8 2022"]
[White "Le, Tuan Minh"]
[Black "Kosteniuk, Alexandra"]
[WhiteFideId "12401153"]
[BlackFideId "4128125"]
[WhiteElo "2450"]
[BlackElo "2469"]
[Result "0-1"]
[Round "07"]
[TimeControl "180+1"]
[Date "2022.02.08"]
[WhiteClock "0:00:02"]
[BlackClock "0:00:41"]

1. d4 {[%clk 0:03:00]}  Nf6 {[%clk 0:02:59]} 2. Nf3 {[%clk 0:03:01]}  e6 {[%clk 0:03:00]} 3. Bg5 {[%clk 0:03:02]}  d5 {[%clk 0:02:54]} 4. e3 {[%clk 0:03:02]}  c5 {[%clk 0:02:52]} 5. c3 {[%clk 0:03:02]}  Nc6 {[%clk 0:02:52]} 6. Nbd2 {[%clk 0:03:01]}  Be7 {[%clk 0:02:41]} 7. Bd3 {[%clk 0:02:58]}  O-O {[%clk 0:02:39]} 8. O-O {[%clk 0:02:50]}  Nd7 {[%clk 0:02:37]} 9. Bf4 {[%clk 0:02:49]}  f5 {[%clk 0:02:34]} 10. c4 {[%clk 0:02:45]}  g5 {[%clk 0:02:29]} 11. Bg3 {[%clk 0:01:05]}  f4 {[%clk 0:02:26]} 12. cxd5 {[%clk 0:01:01]}  exd5 {[%clk 0:02:25]} 13. exf4 {[%clk 0:01:00]}  gxf4 {[%clk 0:02:25]} 14. Qe2 {[%clk 0:01:01]}  fxg3 {[%clk 0:02:19]} 15. Qe6+ {[%clk 0:01:00]}  Kh8 {[%clk 0:02:15]} 16. Qh6 {[%clk 0:00:59]}  Nf6 {[%clk 0:01:57]} 17. Ng5 {[%clk 0:00:53]}  gxh2+ {[%clk 0:01:18]} 18. Kh1 {[%clk 0:00:51]}  Qe8 {[%clk 0:01:18]} 19. Nxh7 {[%clk 0:00:22]}  Qh5 {[%clk 0:01:18]} 20. Qxh5 {[%clk 0:00:21]}  Nxh5 {[%clk 0:01:19]} 21. Nxf8 {[%clk 0:00:22]}  Bxf8 {[%clk 0:01:19]} 22. dxc5 {[%clk 0:00:22]}  Nf4 {[%clk 0:01:11]} 23. Bc2 {[%clk 0:00:20]}  Nd4 {[%clk 0:01:10]} 24. Bb3 {[%clk 0:00:17]}  Bxc5 {[%clk 0:01:08]} 25. Rae1 {[%clk 0:00:16]}  Bf5 {[%clk 0:01:05]} 26. Re5 {[%clk 0:00:12]}  Bd3 {[%clk 0:01:04]} 27. Rc1 {[%clk 0:00:11]}  Nxb3 {[%clk 0:00:51]} 28. axb3 {[%clk 0:00:07]}  Bxf2 {[%clk 0:00:48]} 29. Re7 {[%clk 0:00:05]}  Bg1 {[%clk 0:00:42]} 30. Nf3 {[%clk 0:00:02]}  Ne2 {[%clk 0:00:41]} 31. Rxg1 {[%clk 0:00:02]} 0-1


[Site "https://www.chess.com"]